fUSD/lending_fUSD_20240803
["ID","MTS","AMOUNT","RATE_DAILY","PERIOD"]
[333966973,1722651048963,-500.0,0.00016712,2]
[333966974,1722651048973,-617.38,0.00016712,2]
[333966975,1722651048982,-500.0,0.00016712,2]
[333966976,1722651048992,-500.0,0.00016712,2]
[333966977,1722651049001,-3536.09,0.00016712,2]
[333966978,1722651049011,-500.0,0.00016712,2]
[333966979,1722651049021,-500.0,0.00016712,2]
[333966980,1722651049030,-500.0,0.00016712,2]
[333966981,1722651049040,-1328.92,0.00016712,2]
[333966982,1722651049049,-500.0,0.00016712,2]
[333966983,1722651049059,-592.28,0.00016712,2]
[333966984,1722651049068,-1252.13,0.00016712,2]
[333966985,1722651049078,-524.52,0.00016712,2]
[333966986,1722651049087,-500.0,0.00016712,2]
[333966987,1722651049097,-500.0,0.00016712,2]
[333966988,1722651049106,-500.0,0.00016712,2]
[333966989,1722651049116,-1830.95,0.00016712,2]
[333966990,1722651049125,-2022.74,0.00016712,2]
[333966991,1722651049135,-500.0,0.00016712,2]
[333966992,1722651049145,-860.23,0.00016712,2]
[333966993,1722651049155,-1051.69,0.00016712,2]
[333966994,1722651049165,-1112.85,0.00016712,2]
[333966995,1722651049175,-1553.22,0.00016712,2]
[333966996,1722651049184,-500.0,0.00016712,2]
[333966997,1722651049194,-1191.81,0.00016712,2]
[333966998,1722651049203,-500.0,0.00016712,2]
[333966999,1722651049213,-1785.16,0.00016712,2]
[333967000,1722651049222,-700.17,0.00016712,2]
[333967001,1722651049232,-1713.96,0.00016712,2]
[333967002,1722651049241,-1459.44,0.00016712,2]
[333967003,1722651049251,-500.0,0.00016712,2]
[333967004,1722651049261,-1416.37,0.00016712,2]
[333967005,1722651049270,-2830.26,0.00016712,2]
[333967006,1722651049280,-500.0,0.00016712,2]
[333967007,1722651049289,-1346.88,0.00016712,2]
[333967008,1722651049299,-1283.48,0.00016712,2]
[333967009,1722651049308,-551.33,0.00016712,2]
[333967010,1722651049318,-500.0,0.00016712,2]
[333967011,1722651049327,-1632.09,0.00016712,2]
[333967012,1722651049337,-4335.69,0.00016712,2]
[333967013,1722651049346,-866.97,0.00016712,2]
[333967014,1722651049356,-622.24,0.00016712,2]
[333967015,1722651049366,-1262.73,0.00016712,2]
[333967016,1722651049376,-500.0,0.00016712,2]
[333967017,1722651049385,-2317.89,0.00016712,2]
[333967018,1722651049395,-838.61,0.00016712,2]
[333967019,1722651049404,-1301.11,0.00016712,2]
[333967020,1722651049413,-1241.15,0.00016712,2]
[333967021,1722651049423,-2111.76,0.00016712,2]
[333967022,1722651049432,-798.09,0.00016712,2]
[333967023,1722651049442,-1321.13,0.00016712,2]
[333967024,1722651049452,-500.0,0.00016712,2]
[333967025,1722651049461,-500.0,0.00016712,2]
[333967026,1722651049471,-1316.17,0.00016712,2]
[333967027,1722651049481,-1598.37,0.00016712,2]
[333967028,1722651049490,-500.0,0.00016712,2]
[333967029,1722651049500,-2589.6,0.00016712,2]
[333967030,1722651049510,-500.0,0.00016712,2]
[333967031,1722651049519,-4030.14,0.00016712,2]
[333967032,1722651049528,-500.0,0.00016712,2]
[333967033,1722651049538,-4056.49,0.00016712,2]
[333967034,1722651049547,-2452.63,0.00016712,2]
[333967035,1722651049557,-3023.07,0.00016712,2]
[333967036,1722651049567,-2907.39,0.00016712,2]
[333967037,1722651049576,-691.98,0.00016712,2]
[333967038,1722651049586,-502.51,0.00016712,2]
[333967039,1722651049596,-500.0,0.00016712,2]
[333967040,1722651049605,-1260.73,0.00016712,2]
[333967041,1722651049615,-586.19,0.00016712,2]
[333967042,1722651049624,-1129.00531097,0.00016786,2]
[333967043,1722651049634,-1447.00684588,0.00016881,2]
[333967044,1722651049643,-319.20896444,0.00016886,2]
[333967045,1722651049652,-9066.80742035,0.00016886,2]
[333967046,1722651049662,-203.0,0.0001689,2]
[333967047,1722651049672,-300.0,0.0001689,2]
[333967048,1722651049682,-420.2,0.000169,2]
[333967049,1722651049692,-153.70725901,0.00016983,2]
[333967050,1722651049702,-489.79559487,0.00016985,2]
[333967051,1722651049711,-1000.0,0.00016985,2]
[333967052,1722651049721,-500.0,0.00016986,2]
[333967053,1722651049731,-626.12,0.00016986,2]
[333967054,1722651049742,-500.0,0.00016986,2]
[333967055,1722651049753,-500.0,0.00016986,2]
[333967056,1722651049769,-500.0,0.00016986,2]
[333967057,1722651049788,-500.0,0.00016986,2]
[333967058,1722651049804,-500.0,0.00016986,2]
[333967059,1722651049814,-500.0,0.00016986,2]
[333967060,1722651049823,-574.11,0.00016986,2]
[333967061,1722651049833,-500.0,0.00016986,2]
[333967062,1722651049842,-500.0,0.00016986,2]
[333967063,1722651049852,-500.0,0.00016986,2]
[333967064,1722651049861,-758.37,0.00016986,2]
[333967065,1722651049870,-500.0,0.00016986,2]
[333967066,1722651049880,-500.0,0.00016986,2]
[333967067,1722651049889,-566.80261449,0.00016986,2]
[333967068,1722651049899,-500.0,0.00016986,2]
[333967069,1722651049908,-500.0,0.00016986,2]
[333967070,1722651049917,-500.0,0.00016986,2]
[333967071,1722651049927,-582.99,0.00016986,2]
[333967072,1722651049937,-500.0,0.00016986,2]
[333967073,1722651049946,-500.0,0.00016986,2]
[333967074,1722651049956,-500.0,0.00016986,2]
[333967075,1722651049965,-500.0,0.00016986,2]
[333967076,1722651049975,-500.0,0.00016986,2]
[333967077,1722651049997,-500.0,0.00016986,2]
[333967078,1722651050007,-500.0,0.00016986,2]
[333967079,1722651050016,-500.0,0.00016986,2]
[333967080,1722651050026,-843.93,0.00016986,2]
[333967081,1722651050037,-500.0,0.00016986,2]
[333967082,1722651050047,-500.0,0.00016986,2]
[333967083,1722651050056,-603.02,0.00016986,2]
[333967084,1722651050065,-500.0,0.00016986,2]
[333967085,1722651050077,-996.51,0.00016986,2]
[333967086,1722651050086,-646.27,0.00016986,2]
[333967087,1722651050096,-806.2,0.00016986,2]
[333967088,1722651050106,-1267.92,0.00016986,2]
[333967089,1722651050115,-500.0,0.00016986,2]
[333967090,1722651050124,-528.59,0.00016986,2]
[333967091,1722651050133,-500.0,0.00016986,2]
[333967092,1722651050142,-500.0,0.00016986,2]
[333967093,1722651050154,-500.0,0.00016986,2]
[333967094,1722651050163,-500.0,0.00016986,2]
[333967095,1722651050172,-872.86,0.00016986,2]
[333967096,1722651050181,-500.0,0.00016986,2]
[333967097,1722651050190,-924.27,0.00016986,2]
[333967098,1722651050199,-518.62,0.00016986,2]
[333967099,1722651050331,-500.0,0.00016986,2]
[333967100,1722651050350,-500.0,0.00016986,2]
[333967101,1722651050359,-544.52,0.00016986,2]
[333967102,1722651050368,-500.0,0.00016986,2]
[333967103,1722651050377,-500.0,0.00016986,2]
[333967104,1722651050387,-500.0,0.00016986,2]
[333967105,1722651050397,-500.0,0.00016986,2]
[333967106,1722651050406,-500.0,0.00016986,2]
[333967107,1722651050417,-1105.48,0.00016986,2]
[333967108,1722651050426,-500.0,0.00016986,2]
[333967109,1722651050436,-539.48,0.00016986,2]
[333967110,1722651050445,-941.91,0.00016986,2]
[333967111,1722651050455,-500.0,0.00016986,2]
[333967112,1722651050464,-500.0,0.00016986,2]
[333967113,1722651050473,-500.0,0.00016986,2]
[333967114,1722651050482,-500.0,0.00016986,2]
[333967115,1722651050492,-625.91,0.00016986,2]
[333967116,1722651050501,-500.0,0.00016986,2]
[333967117,1722651050510,-531.34,0.00016986,2]
[333967118,1722651050520,-500.0,0.00016986,2]
[333967119,1722651050529,-398.21568092,0.00016986,2]
[333967120,1722651050539,-650.56,0.00016986,2]
[333967121,1722651050549,-500.0,0.00016986,2]
[333967122,1722651050558,-500.0,0.00016986,2]
[333967123,1722651050568,-500.0,0.00016986,2]
[333967124,1722651050577,-901.7,0.00016986,2]
[333967125,1722651050587,-552.17,0.00016986,2]
[333967126,1722651050596,-845.42,0.00016986,2]
[333967127,1722651050605,-500.0,0.00016986,2]
[333967128,1722651050615,-500.0,0.00016986,2]
[333967129,1722651050624,-993.64,0.00016986,2]
[333967130,1722651050635,-500.0,0.00016986,2]
[333967131,1722651050644,-615.75,0.00016986,2]
[333967132,1722651050654,-500.0,0.00016986,2]
[333967133,1722651050663,-500.0,0.00016986,2]
[333967134,1722651050672,-500.0,0.00016986,2]
[333967135,1722651050682,-500.0,0.00016986,2]
[333967136,1722651050691,-500.0,0.00016986,2]
[333967137,1722651050701,-500.0,0.00016986,2]
[333967138,1722651050711,-789.97,0.00016986,2]
[333967139,1722651050721,-500.0,0.00016986,2]
[333967140,1722651050730,-741.33,0.00016986,2]
[333967141,1722651050739,-500.0,0.00016986,2]
[333967142,1722651050748,-500.0,0.00016986,2]
[333967143,1722651050759,-500.0,0.00016986,2]
[333967144,1722651050771,-500.0,0.00016986,2]
[333967145,1722651050781,-500.0,0.00016986,2]
[333967146,1722651050791,-500.0,0.00016986,2]
[333967147,1722651050800,-500.0,0.00016986,2]
[333967148,1722651050809,-912.85,0.00016986,2]
[333967149,1722651050819,-1013.37,0.00016986,2]
[333967150,1722651050828,-500.0,0.00016986,2]
[333967151,1722651050838,-586.68,0.00016986,2]
[333967152,1722651050849,-1181.36,0.00016986,2]
[333967153,1722651050859,-603.55,0.00016986,2]
[333967154,1722651050868,-513.24,0.00016986,2]
[333967155,1722651050879,-845.25,0.00016986,2]
[333967156,1722651050889,-500.0,0.00016986,2]
[333967157,1722651050899,-500.0,0.00016986,2]
[333967158,1722651050909,-963.75,0.00016986,2]
[333967159,1722651050918,-500.0,0.00016986,2]
[333967160,1722651050928,-500.0,0.00016986,2]
[333967161,1722651050937,-500.0,0.00016986,2]
[333967162,1722651050947,-500.0,0.00016986,2]
[333967163,1722651050956,-500.0,0.00016986,2]
[333967164,1722651050965,-742.08,0.00016986,2]
[333967165,1722651050975,-500.0,0.00016986,2]
[333967166,1722651050985,-569.72582537,0.00016986,2]
[333967167,1722651050995,-591.66,0.00016986,2]
[333967168,1722651051005,-1305.01,0.00016986,2]
[333967169,1722651051015,-677.98,0.00016986,2]
[333967170,1722651051025,-588.58,0.00016986,2]
[333967171,1722651051036,-1249.82,0.00016986,2]
[333967172,1722651051046,-500.0,0.00016986,2]
[333967173,1722651051055,-500.0,0.00016986,2]
[333967174,1722651051066,-500.0,0.00016986,2]
[333967175,1722651051075,-500.0,0.00016986,2]
[333967176,1722651051085,-1077.22,0.00016986,2]
[333967177,1722651051095,-500.0,0.00016986,2]
[333967178,1722651051108,-500.0,0.00016986,2]
[333967179,1722651051118,-557.62,0.00016986,2]
[333967180,1722651051128,-500.0,0.00016986,2]
[333967181,1722651051138,-550.88,0.00016986,2]
[333967182,1722651051149,-1061.37,0.00016986,2]
[333967183,1722651051159,-580.68,0.00016986,2]
[333967184,1722651051170,-551.86,0.00016986,2]
[333967185,1722651051179,-500.0,0.00016986,2]
[333967186,1722651051189,-500.0,0.00016986,2]
[333967187,1722651051199,-500.0,0.00016986,2]
[333967188,1722651051209,-651.09,0.00016986,2]
[333967189,1722651051219,-646.73,0.00016986,2]
[333967190,1722651051228,-1295.65,0.00016986,2]
[333967191,1722651051237,-500.0,0.00016986,2]
[333967192,1722651051247,-500.0,0.00016986,2]
[333967193,1722651051259,-767.14,0.00016986,2]
[333967194,1722651051270,-1154.21,0.00016986,2]
[333967195,1722651051279,-507.6,0.00016986,2]
[333967196,1722651051289,-673.72,0.00016986,2]
[333967197,1722651051298,-500.0,0.00016986,2]
[333967198,1722651051308,-500.0,0.00016986,2]
[333967199,1722651051318,-500.0,0.00016986,2]
[333967200,1722651051328,-500.0,0.00016986,2]
[333967201,1722651051338,-627.81,0.00016986,2]
[333967202,1722651051347,-500.0,0.00016986,2]
[333967203,1722651051358,-500.0,0.00016986,2]
[333967204,1722651051369,-500.0,0.00016986,2]
[333967205,1722651051379,-500.0,0.00016986,2]
[333967206,1722651051388,-500.0,0.00016986,2]
[333967207,1722651051398,-500.0,0.00016986,2]
[333967208,1722651051407,-1211.48,0.00016986,2]
[333967209,1722651051417,-500.0,0.00016986,2]
[333967210,1722651051427,-512.86,0.00016986,2]
[333967211,1722651051437,-500.0,0.00016986,2]
[333967212,1722651051447,-500.0,0.00016986,2]
[333967213,1722651051456,-500.0,0.00016986,2]
[333967214,1722651051465,-500.0,0.00016986,2]
[333967215,1722651051475,-500.0,0.00016986,2]
[333967216,1722651051484,-1399.3,0.00016986,2]
[333967217,1722651051494,-1069.49,0.00016986,2]
[333967218,1722651051503,-500.0,0.00016986,2]
[333967219,1722651051513,-500.0,0.00016986,2]
[333967220,1722651051523,-500.0,0.00016986,2]
[333967221,1722651051533,-500.0,0.00016986,2]
[333967222,1722651051544,-500.0,0.00016986,2]
[333967223,1722651051555,-1261.38,0.00016986,2]
[333967224,1722651051566,-500.0,0.00016986,2]
[333967225,1722651051577,-944.05,0.00016986,2]
[333967226,1722651051586,-1218.4,0.00016986,2]
[333967227,1722651051596,-500.0,0.00016986,2]
[333967228,1722651051605,-500.0,0.00016986,2]
[333967229,1722651051614,-777.91,0.00016986,2]
[333967230,1722651051624,-500.0,0.00016986,2]
[333967231,1722651051634,-500.0,0.00016986,2]
[333967232,1722651051643,-500.0,0.00016986,2]
[333967233,1722651051652,-500.0,0.00016986,2]
[333967234,1722651051662,-500.0,0.00016986,2]
[333967235,1722651051671,-571.24,0.00016986,2]
[333967236,1722651051680,-500.0,0.00016986,2]
[333967237,1722651051690,-579.3,0.00016986,2]
[333967238,1722651051699,-500.0,0.00016986,2]
[333967239,1722651051709,-1024.5,0.00016986,2]
[333967240,1722651051718,-500.0,0.00016986,2]
[333967241,1722651051727,-877.79,0.00016986,2]
[333967242,1722651051745,-776.25,0.00016986,2]
[333967243,1722651051755,-500.0,0.00016986,2]
[333967244,1722651051764,-500.0,0.00016986,2]
[333967245,1722651051775,-500.0,0.00016986,2]
[333967246,1722651051787,-505.19,0.00016986,2]
[333967247,1722651051796,-500.0,0.00016986,2]
[333967248,1722651051806,-500.0,0.00016986,2]
[333967249,1722651051819,-500.0,0.00016986,2]
[333967250,1722651051829,-500.0,0.00016986,2]
[333967251,1722651051838,-500.0,0.00016986,2]
[333967252,1722651051849,-613.45,0.00016986,2]
[333967253,1722651051859,-500.0,0.00016986,2]
[333967254,1722651051869,-500.0,0.00016986,2]
[333967255,1722651051878,-796.47,0.00016986,2]
[333967256,1722651051887,-500.0,0.00016986,2]
[333967257,1722651051897,-502.92,0.00016986,2]
[333967258,1722651051906,-500.0,0.00016986,2]
[333967259,1722651051916,-1034.64,0.00016986,2]
[333967260,1722651051925,-1557.68,0.00016986,2]
[333967261,1722651051935,-785.43,0.00016986,2]
[333967262,1722651051944,-1344.34,0.00016986,2]
[333967263,1722651051954,-722.02,0.00016986,2]
[333967264,1722651051963,-500.0,0.00016986,2]
[333967265,1722651051973,-500.0,0.00016986,2]
[333967266,1722651051983,-1325.29,0.00016986,2]
[333967267,1722651051993,-500.0,0.00016986,2]
[333967268,1722651052004,-500.0,0.00016986,2]
[333967269,1722651052013,-500.0,0.00016986,2]
[333967270,1722651052022,-500.0,0.00016986,2]
[333967271,1722651052032,-1277.95,0.00016986,2]
[333967272,1722651052041,-500.0,0.00016986,2]
[333967273,1722651052050,-1525.95,0.00016986,2]
[333967274,1722651052060,-500.0,0.00016986,2]
[333967275,1722651052070,-500.0,0.00016986,2]
[333967276,1722651052079,-528.47,0.00016986,2]
[333967277,1722651052089,-1097.79,0.00016986,2]
[333967278,1722651052098,-500.0,0.00016986,2]
[333967279,1722651052108,-857.17,0.00016986,2]
[333967280,1722651052117,-500.0,0.00016986,2]
[333967281,1722651052126,-810.13,0.00016986,2]
[333967282,1722651052136,-500.0,0.00016986,2]
[333967283,1722651052145,-500.0,0.00016986,2]
[333967284,1722651052155,-500.0,0.00016986,2]
[333967285,1722651052165,-504.63,0.00016986,2]
[333967286,1722651052174,-500.0,0.00016986,2]
[333967287,1722651052183,-500.0,0.00016986,2]
[333967288,1722651052193,-500.0,0.00016986,2]
[333967289,1722651052202,-500.0,0.00016986,2]
[333967290,1722651052211,-500.0,0.00016986,2]
[333967291,1722651052221,-1756.89,0.00016986,2]
[333967292,1722651052230,-500.0,0.00016986,2]
[333967293,1722651052256,-500.0,0.00016986,2]
[333967294,1722651052265,-357.9807236,0.00016986,2]
[333967295,1722651052275,-500.0,0.00016986,2]
[333967296,1722651052284,-993.34,0.00016986,2]
[333967297,1722651052294,-500.0,0.00016986,2]
[333967298,1722651052303,-500.0,0.00016986,2]
[333967299,1722651052312,-1211.32,0.00016986,2]
[333967300,1722651052321,-500.0,0.00016986,2]
[333967301,1722651052331,-1084.87,0.00016986,2]
[333967302,1722651052340,-500.0,0.00016986,2]
[333967303,1722651052350,-947.53,0.00016986,2]
[333967304,1722651052359,-879.82,0.00016986,2]
[333967305,1722651052368,-705.8,0.00016986,2]
[333967306,1722651052378,-500.0,0.00016986,2]
[333967307,1722651052388,-500.0,0.00016986,2]
[333967308,1722651052397,-1354.25,0.00016986,2]
[333967309,1722651052408,-784.1,0.00016986,2]
[333967310,1722651052418,-500.0,0.00016986,2]
[333967311,1722651052427,-698.62,0.00016986,2]
[333967312,1722651052437,-707.56,0.00016986,2]
[333967313,1722651052447,-946.22,0.00016986,2]
[333967314,1722651052456,-500.0,0.00016986,2]
[333967315,1722651052466,-927.25,0.00016986,2]
[333967316,1722651052476,-312.38628268,0.00016986,2]
[333967317,1722651052813,-657.15,0.00016986,2]
[333967318,1722651052823,-500.0,0.00016986,2]
[333967319,1722651052832,-858.16,0.00016986,2]
[333967320,1722651052844,-500.0,0.00016986,2]
[333967321,1722651052854,-500.0,0.00016986,2]
[333967322,1722651052864,-961.52,0.00016986,2]
[333967323,1722651052873,-500.0,0.00016986,2]
[333967324,1722651052883,-500.0,0.00016986,2]
[333967325,1722651052892,-848.5,0.00016986,2]
[333967326,1722651052902,-500.0,0.00016986,2]
[333967327,1722651052911,-1026.21,0.00016986,2]
[333967328,1722651052921,-812.5,0.00016986,2]
[333967329,1722651052931,-500.0,0.00016986,2]
[333967330,1722651052941,-500.0,0.00016986,2]
[333967331,1722651052950,-500.0,0.00016986,2]
[333967332,1722651052959,-500.0,0.00016986,2]
[333967333,1722651052970,-861.53,0.00016986,2]
[333967334,1722651052979,-500.0,0.00016986,2]
[333967335,1722651052988,-584.29,0.00016986,2]
[333967336,1722651052998,-500.0,0.00016986,2]
[333967337,1722651053008,-500.0,0.00016986,2]
[333967338,1722651053018,-500.0,0.00016986,2]
[333967339,1722651053027,-500.0,0.00016986,2]
[333967340,1722651053037,-625.23,0.00016986,2]
[333967341,1722651053046,-959.41,0.00016986,2]
[333967342,1722651053056,-500.0,0.00016986,2]
[333967343,1722651053066,-500.0,0.00016986,2]
[333967344,1722651053075,-500.0,0.00016986,2]
[333967345,1722651053084,-1024.08,0.00016986,2]
[333967346,1722651053094,-1192.68,0.00016986,2]
[333967347,1722651053103,-885.45,0.00016986,2]
[333967348,1722651053113,-612.63,0.00016986,2]
[333967349,1722651053123,-500.0,0.00016986,2]
[333967350,1722651053132,-791.32,0.00016986,2]
[333967351,1722651053143,-1070.93,0.00016986,2]
[333967352,1722651053153,-1340.04,0.00016986,2]
[333967353,1722651053163,-1107.77,0.00016986,2]
[333967354,1722651053173,-509.26,0.00016986,2]
[333967355,1722651053183,-500.0,0.00016986,2]
[333967356,1722651053192,-801.03,0.00016986,2]
[333967357,1722651053201,-500.0,0.00016986,2]
[333967358,1722651053211,-500.0,0.00016986,2]
[333967359,1722651053220,-500.0,0.00016986,2]
[333967360,1722651053229,-500.0,0.00016986,2]
[333967361,1722651053238,-500.0,0.00016986,2]
[333967362,1722651053258,-818.78,0.00016986,2]
[333967363,1722651053273,-1083.61,0.00016986,2]
[333967364,1722651053282,-500.0,0.00016986,2]
[333967365,1722651053292,-500.0,0.00016986,2]
[333967366,1722651053301,-500.0,0.00016986,2]
[333967367,1722651053310,-500.0,0.00016986,2]
[333967368,1722651053319,-500.0,0.00016986,2]
[333967369,1722651053329,-557.05,0.00016986,2]
[333967370,1722651053338,-783.6,0.00016986,2]
[333967371,1722651053347,-500.0,0.00016986,2]
[333967372,1722651053357,-720.07,0.00016986,2]
[333967373,1722651053366,-586.09,0.00016986,2]
[333967374,1722651053376,-500.0,0.00016986,2]
[333967375,1722651053385,-500.0,0.00016986,2]
[333967376,1722651053395,-1062.03,0.00016986,2]
[333967377,1722651053404,-500.0,0.00016986,2]
[333967378,1722651053413,-500.0,0.00016986,2]
[333967379,1722651053423,-500.0,0.00016986,2]
[333967380,1722651053433,-773.3,0.00016986,2]
[333967381,1722651053442,-500.0,0.00016986,2]
[333967382,1722651053452,-1407.4,0.00016986,2]
[333967383,1722651053461,-500.0,0.00016986,2]
[333967384,1722651053471,-500.0,0.00016986,2]
[333967385,1722651053480,-500.0,0.00016986,2]
[333967386,1722651053489,-500.0,0.00016986,2]
[333967387,1722651053498,-500.0,0.00016986,2]
[333967388,1722651053507,-556.21,0.00016986,2]
[333967389,1722651053517,-500.0,0.00016986,2]
[333967390,1722651053527,-500.0,0.00016986,2]
[333967391,1722651053536,-500.0,0.00016986,2]
[333967392,1722651053546,-576.3,0.00016986,2]
[333967393,1722651053555,-1453.56,0.00016986,2]
[333967394,1722651053565,-500.0,0.00016986,2]
[333967395,1722651053574,-500.0,0.00016986,2]
[333967396,1722651053583,-500.0,0.00016986,2]
[333967397,1722651053593,-500.0,0.00016986,2]
[333967398,1722651053602,-500.0,0.00016986,2]
[333967399,1722651053611,-566.04,0.00016986,2]
[333967400,1722651053621,-502.48,0.00016986,2]
[333967401,1722651053630,-500.0,0.00016986,2]
[333967402,1722651053640,-503.68,0.00016986,2]
[333967403,1722651053649,-604.62,0.00016986,2]
[333967404,1722651053659,-500.0,0.00016986,2]
[333967405,1722651053668,-500.0,0.00016986,2]
[333967406,1722651053677,-989.64,0.00016986,2]
[333967407,1722651053687,-500.0,0.00016986,2]
[333967408,1722651053696,-1296.51,0.00016986,2]
[333967409,1722651053705,-944.97,0.00016986,2]
[333967410,1722651053715,-500.0,0.00016986,2]
[333967411,1722651053725,-500.0,0.00016986,2]
[333967412,1722651053734,-500.0,0.00016986,2]
[333967413,1722651053743,-987.93,0.00016986,2]
[333967414,1722651053769,-1636.9,0.00016986,2]
[333967415,1722651053778,-500.0,0.00016986,2]
[333967416,1722651053787,-500.0,0.00016986,2]
[333967417,1722651053797,-818.58,0.00016986,2]
[333967418,1722651053807,-500.0,0.00016986,2]
[333967419,1722651053816,-665.99,0.00016986,2]
[333967420,1722651053826,-1211.6,0.00016986,2]
[333967421,1722651053835,-500.0,0.00016986,2]
[333967422,1722651053846,-624.91,0.00016986,2]
[333967423,1722651053856,-500.0,0.00016986,2]
[333967424,1722651053865,-581.89,0.00016986,2]
[333967425,1722651053874,-500.0,0.00016986,2]
[333967426,1722651053883,-500.0,0.00016986,2]
[333967427,1722651053892,-1055.76,0.00016986,2]
[333967428,1722651053902,-620.03,0.00016986,2]
[333967429,1722651053911,-200.0,0.00016986,2]
[333967430,1722651053920,-500.0,0.00016986,2]
[333967431,1722651053930,-1645.77,0.00016986,2]
[333967432,1722651053939,-865.01,0.00016986,2]
[333967433,1722651053948,-500.0,0.00016986,2]
[333967434,1722651053958,-500.0,0.00016986,2]
[333967435,1722651053968,-500.0,0.00016986,2]
[333967436,1722651053977,-500.0,0.00016986,2]
[333967437,1722651053986,-500.0,0.00016986,2]
[333967438,1722651053995,-596.17,0.00016986,2]
[333967439,1722651054004,-1449.05,0.00016986,2]
[333967440,1722651054014,-527.57,0.00016986,2]
[333967441,1722651054024,-500.0,0.00016986,2]
[333967442,1722651054034,-500.0,0.00016986,2]
[333967443,1722651054043,-500.0,0.00016986,2]
[333967444,1722651054054,-500.0,0.00016986,2]
[333967445,1722651054063,-1853.08,0.00016986,2]
[333967446,1722651054072,-500.0,0.00016986,2]
[333967447,1722651054081,-500.0,0.00016986,2]
[333967448,1722651054091,-690.06,0.00016986,2]
[333967449,1722651054100,-500.0,0.00016986,2]
[333967450,1722651054109,-1244.28,0.00016986,2]
[333967451,1722651054118,-500.0,0.00016986,2]
[333967452,1722651054127,-500.0,0.00016986,2]
[333967453,1722651054136,-500.0,0.00016986,2]
[333967454,1722651054145,-597.13,0.00016986,2]
[333967455,1722651054154,-900.1,0.00016986,2]
[333967456,1722651054164,-545.56,0.00016986,2]
[333967457,1722651054174,-500.0,0.00016986,2]
[333967458,1722651054183,-500.0,0.00016986,2]
[333967459,1722651054192,-581.4,0.00016986,2]
[333967460,1722651054201,-500.0,0.00016986,2]
[333967461,1722651054210,-500.0,0.00016986,2]
[333967462,1722651054220,-500.0,0.00016986,2]
[333967463,1722651054229,-564.41,0.00016986,2]
[333967464,1722651054238,-500.0,0.00016986,2]
[333967465,1722651054255,-1004.46,0.00016986,2]
[333967466,1722651054268,-500.0,0.00016986,2]
[333967467,1722651054278,-660.08,0.00016986,2]
[333967468,1722651054287,-500.0,0.00016986,2]
[333967469,1722651054297,-500.0,0.00016986,2]
[333967470,1722651054306,-764.93,0.00016986,2]
[333967471,1722651054315,-500.0,0.00016986,2]
[333967472,1722651054325,-500.0,0.00016986,2]